[Event "Titled Tuesday Blitz December 27 Late 2022"]
[White "Grigoriants, Sergey"]
[Black "Gritsenko, Nikolai"]
[WhiteFideId "4130804"]
[BlackFideId "14112493"]
[WhiteElo "2562"]
[BlackElo "2309"]
[Result "0-1"]
[Round "03"]
[TimeControl "180+2"]
[Date "2022.12.27"]
[WhiteClock "0:00:04"]
[BlackClock "0:00:09"]

1. d4 {[%clk 0:02:56]}  d5 {[%clk 0:02:58]} 2. c4 {[%clk 0:02:55]}  Nc6 {[%clk 0:02:58]} 3. Nc3 {[%clk 0:02:52]}  e6 {[%clk 0:02:56]} 4. cxd5 {[%clk 0:02:39]}  exd5 {[%clk 0:02:55]} 5. Bf4 {[%clk 0:02:38]}  Bd6 {[%clk 0:02:50]} 6. Bg3 {[%clk 0:02:38]}  Nce7 {[%clk 0:02:47]} 7. e3 {[%clk 0:02:37]}  c6 {[%clk 0:02:46]} 8. Bd3 {[%clk 0:02:36]}  Nf6 {[%clk 0:02:46]} 9. Qc2 {[%clk 0:02:33]}  O-O {[%clk 0:02:44]} 10. Nf3 {[%clk 0:02:32]}  Bg4 {[%clk 0:02:37]} 11. Ne5 {[%clk 0:02:31]}  Bh5 {[%clk 0:02:36]} 12. f4 {[%clk 0:01:59]}  c5 {[%clk 0:02:31]} 13. O-O {[%clk 0:01:47]}  c4 {[%clk 0:02:28]} 14. Be2 {[%clk 0:01:43]}  Bxe2 {[%clk 0:02:19]} 15. Qxe2 {[%clk 0:01:43]}  Nf5 {[%clk 0:01:50]} 16. Be1 {[%clk 0:01:34]}  Bb4 {[%clk 0:01:49]} 17. g4 {[%clk 0:01:30]}  Bxc3 {[%clk 0:01:34]} 18. bxc3 {[%clk 0:01:21]}  Nd6 {[%clk 0:01:33]} 19. Bh4 {[%clk 0:01:06]}  Re8 {[%clk 0:01:31]} 20. f5 {[%clk 0:01:03]}  Qa5 {[%clk 0:01:18]} 21. g5 {[%clk 0:00:51]}  Nfe4 {[%clk 0:01:18]} 22. g6 {[%clk 0:00:51]}  f6 {[%clk 0:01:03]} 23. gxh7+ {[%clk 0:00:43]}  Kxh7 {[%clk 0:01:03]} 24. Qh5+ {[%clk 0:00:36]}  Kg8 {[%clk 0:01:01]} 25. Kh1 {[%clk 0:00:37]}  Qxc3 {[%clk 0:00:38]} 26. Rg1 {[%clk 0:00:36]}  Qxe3 {[%clk 0:00:34]} 27. Rxg7+ {[%clk 0:00:14]}  Kxg7 {[%clk 0:00:34]} 28. Rg1+ {[%clk 0:00:14]}  Qxg1+ {[%clk 0:00:30]} 29. Kxg1 {[%clk 0:00:15]}  Rg8 {[%clk 0:00:30]} 30. Ng6 {[%clk 0:00:10]}  c3 {[%clk 0:00:22]} 31. Bf2 {[%clk 0:00:05]}  Nc4 {[%clk 0:00:14]} 32. Nf4 {[%clk 0:00:03]}  Rae8 {[%clk 0:00:10]} 33. Ne6+ {[%clk 0:00:03]}  Rxe6 {[%clk 0:00:09]} 34. fxe6 {[%clk 0:00:04]}  c2 {[%clk 0:00:09]} 0-1


[Site "https://www.chess.com"]

[Event "Titled Tuesday Blitz December 27 Late 2022"]
[White "Itkis, Boris"]
[Black "Fiorito, Joaquin"]
[WhiteFideId "1209167"]
[BlackFideId "180173"]
[WhiteElo "2329"]
[BlackElo "2405"]
[Result "0-1"]
[Round "03"]
[TimeControl "180+2"]
[Date "2022.12.27"]
[WhiteClock "0:00:05"]
[BlackClock "0:00:47"]

1. c4 {[%clk 0:03:00]}  c6 {[%clk 0:02:57]} 2. Nf3 {[%clk 0:02:59]}  d5 {[%clk 0:02:57]} 3. e3 {[%clk 0:03:00]}  Nf6 {[%clk 0:02:57]} 4. Nc3 {[%clk 0:03:00]}  e6 {[%clk 0:02:57]} 5. b3 {[%clk 0:03:01]}  Nbd7 {[%clk 0:02:58]} 6. Bb2 {[%clk 0:03:01]}  Bd6 {[%clk 0:02:58]} 7. Qc2 {[%clk 0:03:02]}  O-O {[%clk 0:02:55]} 8. Rg1 {[%clk 0:03:02]}  e5 {[%clk 0:02:42]} 9. cxd5 {[%clk 0:03:01]}  cxd5 {[%clk 0:02:43]} 10. Nb5 {[%clk 0:03:01]}  Bb8 {[%clk 0:02:42]} 11. Rc1 {[%clk 0:02:53]}  Re8 {[%clk 0:02:21]} 12. Nc7 {[%clk 0:02:40]}  Bxc7 {[%clk 0:02:21]} 13. Qxc7 {[%clk 0:02:41]}  Qe7 {[%clk 0:02:09]} 14. Bb5 {[%clk 0:02:31]}  a6 {[%clk 0:02:05]} 15. Bxd7 {[%clk 0:02:11]}  Nxd7 {[%clk 0:01:52]} 16. h3 {[%clk 0:01:48]}  a5 {[%clk 0:01:51]} 17. a4 {[%clk 0:01:44]}  Qb4 {[%clk 0:01:39]} 18. Qc3 {[%clk 0:01:06]}  Qd6 {[%clk 0:01:24]} 19. d4 {[%clk 0:01:01]}  e4 {[%clk 0:01:17]} 20. Ne5 {[%clk 0:01:01]}  Nxe5 {[%clk 0:01:05]} 21. dxe5 {[%clk 0:01:01]}  Qg6 {[%clk 0:01:05]} 22. g4 {[%clk 0:00:19]}  Be6 {[%clk 0:01:01]} 23. Ke2 {[%clk 0:00:19]}  h5 {[%clk 0:00:57]} 24. g5 {[%clk 0:00:14]}  Bxh3 {[%clk 0:00:55]} 25. Qc7 {[%clk 0:00:12]}  Bg4+ {[%clk 0:00:54]} 26. Kd2 {[%clk 0:00:13]}  Qf5 {[%clk 0:00:49]} 27. Rcf1 {[%clk 0:00:05]}  Qf3 {[%clk 0:00:47]} 0-1


[Site "https://www.chess.com"]

[Event "Titled Tuesday Blitz December 27 Late 2022"]
[White "Jaracz, Pawel"]
[Black "Lobanov, Sergei"]
[WhiteFideId "1102222"]
[BlackFideId "24183750"]
[WhiteElo "2467"]
[BlackElo "2536"]
[Result "1-0"]
[Round "03"]
[TimeControl "180+2"]
[Date "2022.12.27"]
[WhiteClock "0:00:14"]
[BlackClock "0:00:03"]

1. e4 {[%clk 0:03:00]}  e5 {[%clk 0:02:59]} 2. Nf3 {[%clk 0:03:01]}  Nc6 {[%clk 0:02:59]} 3. Bb5 {[%clk 0:03:01]}  a6 {[%clk 0:02:59]} 4. Ba4 {[%clk 0:03:01]}  Bc5 {[%clk 0:03:00]} 5. Bb3 {[%clk 0:02:58]}  Nge7 {[%clk 0:02:54]} 6. Nc3 {[%clk 0:02:42]}  O-O {[%clk 0:02:23]} 7. d3 {[%clk 0:02:33]}  h6 {[%clk 0:02:16]} 8. Be3 {[%clk 0:02:32]}  d6 {[%clk 0:02:11]} 9. h3 {[%clk 0:02:24]}  Bxe3 {[%clk 0:02:03]} 10. fxe3 {[%clk 0:02:24]}  Be6 {[%clk 0:02:04]} 11. g4 {[%clk 0:02:04]}  Bxb3 {[%clk 0:02:02]} 12. axb3 {[%clk 0:02:04]}  d5 {[%clk 0:02:03]} 13. exd5 {[%clk 0:02:02]}  Nxd5 {[%clk 0:02:02]} 14. Nxd5 {[%clk 0:01:56]}  Qxd5 {[%clk 0:02:03]} 15. e4 {[%clk 0:01:52]}  Qc5 {[%clk 0:02:03]} 16. Qd2 {[%clk 0:01:49]}  a5 {[%clk 0:01:42]} 17. Qf2 {[%clk 0:01:47]}  Qb4+ {[%clk 0:01:42]} 18. Qd2 {[%clk 0:01:40]}  Qc5 {[%clk 0:01:42]} 19. Qf2 {[%clk 0:01:36]}  Qb4+ {[%clk 0:01:28]} 20. Qd2 {[%clk 0:01:36]}  Qd6 {[%clk 0:01:28]} 21. O-O {[%clk 0:01:29]}  b5 {[%clk 0:01:24]} 22. Kh2 {[%clk 0:01:28]}  a4 {[%clk 0:01:21]} 23. bxa4 {[%clk 0:01:24]}  bxa4 {[%clk 0:01:22]} 24. Rg1 {[%clk 0:01:18]}  Rfb8 {[%clk 0:01:19]} 25. g5 {[%clk 0:01:00]}  h5 {[%clk 0:01:19]} 26. g6 {[%clk 0:00:59]}  f6 {[%clk 0:01:11]} 27. Nh4 {[%clk 0:00:49]}  Rxb2 {[%clk 0:01:10]} 28. Qe2 {[%clk 0:00:48]}  Ne7 {[%clk 0:00:42]} 29. Rg2 {[%clk 0:00:43]}  Kf8 {[%clk 0:00:27]} 30. Qxh5 {[%clk 0:00:43]}  Ng8 {[%clk 0:00:23]} 31. Nf5 {[%clk 0:00:42]}  Qd7 {[%clk 0:00:22]} 32. d4 {[%clk 0:00:30]}  exd4 {[%clk 0:00:19]} 33. e5 {[%clk 0:00:30]}  d3 {[%clk 0:00:11]} 34. exf6 {[%clk 0:00:28]}  Nxf6 {[%clk 0:00:11]} 35. Qh8+ {[%clk 0:00:27]}  Ng8 {[%clk 0:00:11]} 36. Rf1 {[%clk 0:00:26]}  Rxc2 {[%clk 0:00:06]} 37. Nxg7+ {[%clk 0:00:19]}  Ke7 {[%clk 0:00:06]} 38. Rf7+ {[%clk 0:00:18]}  Kd6 {[%clk 0:00:05]} 39. Rxd7+ {[%clk 0:00:18]}  Kxd7 {[%clk 0:00:05]} 40. Nf5 {[%clk 0:00:16]}  Rxg2+ {[%clk 0:00:05]} 41. Kxg2 {[%clk 0:00:17]}  d2 {[%clk 0:00:03]} 42. Qd4+ {[%clk 0:00:17]}  Ke6 {[%clk 0:00:04]} 43. Ng7+ {[%clk 0:00:17]}  Ke7 {[%clk 0:00:03]} 44. Qxd2 {[%clk 0:00:17]}  a3 {[%clk 0:00:03]} 45. Qe3+ {[%clk 0:00:15]}  Kd7 {[%clk 0:00:03]} 46. Qd4+ {[%clk 0:00:15]}  Kc8 {[%clk 0:00:03]} 47. Qd5 {[%clk 0:00:16]}  Ra5 {[%clk 0:00:01]} 48. Qxg8+ {[%clk 0:00:15]}  Kb7 {[%clk 0:00:02]} 49. Qa2 {[%clk 0:00:15]}  Rg5+ {[%clk 0:00:03]} 50. Kf3 {[%clk 0:00:15]}  Rxg6 {[%clk 0:00:03]} 51. Qxa3 {[%clk 0:00:13]}  Rxg7 {[%clk 0:00:03]} 52. Qb2+ {[%clk 0:00:14]} 1-0


[Site "https://www.chess.com"]

[Event "Titled Tuesday Blitz December 27 Late 2022"]
[White "Jones, Gawain C B"]
[Black "Karacsonyi, Gellert"]
[WhiteFideId "409561"]
[BlackFideId "764620"]
[WhiteElo "2618"]
[BlackElo "2385"]
[Result "0-1"]
[Round "03"]
[TimeControl "180+2"]
[Date "2022.12.27"]
[WhiteClock "0:00:05"]
[BlackClock "0:00:33"]

1. Nf3 {[%clk 0:02:54]}  c5 {[%clk 0:02:59]} 2. c4 {[%clk 0:02:52]}  Nc6 {[%clk 0:02:59]} 3. Nc3 {[%clk 0:02:51]}  g6 {[%clk 0:02:59]} 4. d4 {[%clk 0:02:51]}  cxd4 {[%clk 0:02:59]} 5. Nxd4 {[%clk 0:02:52]}  Nf6 {[%clk 0:02:59]} 6. e4 {[%clk 0:02:50]}  d6 {[%clk 0:02:59]} 7. Be2 {[%clk 0:02:50]}  Nxd4 {[%clk 0:02:59]} 8. Qxd4 {[%clk 0:02:50]}  Bg7 {[%clk 0:03:00]} 9. Bg5 {[%clk 0:02:50]}  O-O {[%clk 0:03:00]} 10. Qd2 {[%clk 0:02:50]}  a5 {[%clk 0:03:00]} 11. O-O {[%clk 0:02:49]}  a4 {[%clk 0:03:00]} 12. Rad1 {[%clk 0:02:35]}  Qa5 {[%clk 0:02:59]} 13. Kh1 {[%clk 0:02:31]}  Be6 {[%clk 0:02:46]} 14. f4 {[%clk 0:02:31]}  Rfc8 {[%clk 0:02:47]} 15. b3 {[%clk 0:02:23]}  axb3 {[%clk 0:02:44]} 16. axb3 {[%clk 0:02:24]}  Nd7 {[%clk 0:02:29]} 17. Nd5 {[%clk 0:02:14]}  Bxd5 {[%clk 0:02:20]} 18. exd5 {[%clk 0:01:51]}  Qxd2 {[%clk 0:02:07]} 19. Rxd2 {[%clk 0:01:52]}  Nf6 {[%clk 0:02:04]} 20. Bd3 {[%clk 0:01:43]}  Ra3 {[%clk 0:02:02]} 21. Rb1 {[%clk 0:01:37]}  Kf8 {[%clk 0:02:02]} 22. f5 {[%clk 0:01:26]}  Nd7 {[%clk 0:02:00]} 23. fxg6 {[%clk 0:01:25]}  hxg6 {[%clk 0:02:01]} 24. h4 {[%clk 0:01:18]}  Bf6 {[%clk 0:02:00]} 25. Bh6+ {[%clk 0:01:15]}  Bg7 {[%clk 0:01:58]} 26. Bg5 {[%clk 0:01:10]}  Bf6 {[%clk 0:01:56]} 27. Bh6+ {[%clk 0:01:08]}  Bg7 {[%clk 0:01:56]} 28. Be3 {[%clk 0:01:04]}  Ne5 {[%clk 0:01:53]} 29. Be2 {[%clk 0:00:50]}  Rca8 {[%clk 0:01:49]} 30. Kg1 {[%clk 0:00:47]}  Ra2 {[%clk 0:01:41]} 31. Kf1 {[%clk 0:00:43]}  Bf6 {[%clk 0:01:32]} 32. g3 {[%clk 0:00:40]}  Kg7 {[%clk 0:01:30]} 33. Bd1 {[%clk 0:00:25]}  Rxd2 {[%clk 0:01:21]} 34. Bxd2 {[%clk 0:00:25]}  Ra2 {[%clk 0:01:20]} 35. Be3 {[%clk 0:00:09]}  Nd3 {[%clk 0:01:20]} 36. Be2 {[%clk 0:00:08]}  Nb4 {[%clk 0:01:16]} 37. Bf2 {[%clk 0:00:06]}  Be5 {[%clk 0:01:12]} 38. Rd1 {[%clk 0:00:06]}  Rb2 {[%clk 0:01:09]} 39. c5 {[%clk 0:00:06]}  Rxb3 {[%clk 0:01:03]} 40. Rc1 {[%clk 0:00:06]}  dxc5 {[%clk 0:00:59]} 41. Bxc5 {[%clk 0:00:06]}  Nd3 {[%clk 0:00:54]} 42. Bxd3 {[%clk 0:00:06]}  Rxd3 {[%clk 0:00:55]} 43. Bxe7 {[%clk 0:00:06]}  Rxd5 {[%clk 0:00:51]} 44. g4 {[%clk 0:00:06]}  Rd4 {[%clk 0:00:50]} 45. Re1 {[%clk 0:00:06]}  Rf4+ {[%clk 0:00:49]} 46. Kg2 {[%clk 0:00:06]}  Rxg4+ {[%clk 0:00:43]} 47. Kf3 {[%clk 0:00:06]}  Rf4+ {[%clk 0:00:40]} 48. Kg2 {[%clk 0:00:07]}  Rf5 {[%clk 0:00:40]} 49. Bg5 {[%clk 0:00:06]}  Bf6 {[%clk 0:00:40]} 50. Bxf6+ {[%clk 0:00:05]}  Kxf6 {[%clk 0:00:41]} 51. Rb1 {[%clk 0:00:05]}  b5 {[%clk 0:00:42]} 52. Kg3 {[%clk 0:00:06]}  Rc5 {[%clk 0:00:42]} 53. Kf4 {[%clk 0:00:06]}  Rc4+ {[%clk 0:00:42]} 54. Kg3 {[%clk 0:00:06]}  b4 {[%clk 0:00:43]} 55. Rf1+ {[%clk 0:00:06]}  Ke6 {[%clk 0:00:42]} 56. Re1+ {[%clk 0:00:07]}  Kd5 {[%clk 0:00:43]} 57. Rd1+ {[%clk 0:00:07]}  Rd4 {[%clk 0:00:43]} 58. Rf1 {[%clk 0:00:07]}  f5 {[%clk 0:00:38]} 59. Rb1 {[%clk 0:00:07]}  Kc4 {[%clk 0:00:36]} 60. Rc1+ {[%clk 0:00:07]}  Kd3 {[%clk 0:00:36]} 61. Rc6 {[%clk 0:00:07]}  b3 {[%clk 0:00:34]} 62. Rxg6 {[%clk 0:00:07]}  b2 {[%clk 0:00:34]} 63. Rb6 {[%clk 0:00:07]}  Kc2 {[%clk 0:00:34]} 64. h5 {[%clk 0:00:07]}  b1=Q {[%clk 0:00:32]} 65. Rxb1 {[%clk 0:00:06]}  Kxb1 {[%clk 0:00:33]} 66. h6 {[%clk 0:00:05]}  Rd6 {[%clk 0:00:33]} 0-1


[Site "https://www.chess.com"]

[Event "Titled Tuesday Blitz December 27 Late 2022"]
[White "Khandelwal, Ankush"]
[Black "Fernandez Guillen, Ernesto J."]
[WhiteFideId "413470"]
[BlackFideId "3512428"]
[WhiteElo "2205"]
[BlackElo "2477"]
[Result "0-1"]
[Round "03"]
[TimeControl "180+2"]
[Date "2022.12.27"]
[WhiteClock "0:01:08"]
[BlackClock "0:02:25"]

1. e4 {[%clk 0:02:14]}  e5 {[%clk 0:02:57]} 2. Nf3 {[%clk 0:02:14]}  Nc6 {[%clk 0:02:57]} 3. d4 {[%clk 0:02:14]}  exd4 {[%clk 0:02:57]} 4. Nxd4 {[%clk 0:02:15]}  g6 {[%clk 0:02:57]} 5. Nxc6 {[%clk 0:02:07]}  bxc6 {[%clk 0:02:58]} 6. Bc4 {[%clk 0:01:56]}  Bg7 {[%clk 0:02:57]} 7. O-O {[%clk 0:01:55]}  Ne7 {[%clk 0:02:53]} 8. Nc3 {[%clk 0:01:51]}  O-O {[%clk 0:02:53]} 9. f4 {[%clk 0:01:51]}  d6 {[%clk 0:02:50]} 10. Be3 {[%clk 0:01:46]}  h6 {[%clk 0:02:45]} 11. Qd2 {[%clk 0:01:42]}  Kh7 {[%clk 0:02:41]} 12. Rf2 {[%clk 0:01:36]}  f5 {[%clk 0:02:40]} 13. Bd3 {[%clk 0:01:18]}  fxe4 {[%clk 0:02:36]} 14. Nxe4 {[%clk 0:01:10]}  Nf5 {[%clk 0:02:37]} 15. Kh1 {[%clk 0:01:10]}  d5 {[%clk 0:02:27]} 16. Ng3 {[%clk 0:01:08]}  d4 {[%clk 0:02:24]} 17. Nxf5 {[%clk 0:01:08]}  Bxf5 {[%clk 0:02:25]} 0-1


[Site "https://www.chess.com"]

[Event "Titled Tuesday Blitz December 27 Late 2022"]
[White "Kozlov, Gennady"]
[Black "Forgacs, Attila Jr."]
[WhiteFideId "4191668"]
[BlackFideId "773654"]
[WhiteElo "2401"]
[BlackElo "2264"]
[Result "1-0"]
[Round "03"]
[TimeControl "180+2"]
[Date "2022.12.27"]
[WhiteClock "0:01:37"]
[BlackClock "0:00:28"]

1. b3 {[%clk 0:02:58]}  g6 {[%clk 0:03:00]} 2. Bb2 {[%clk 0:02:58]}  Nf6 {[%clk 0:03:00]} 3. e3 {[%clk 0:02:59]}  Bg7 {[%clk 0:03:01]} 4. f4 {[%clk 0:03:00]}  O-O {[%clk 0:03:02]} 5. Nf3 {[%clk 0:03:00]}  d5 {[%clk 0:03:02]} 6. Be2 {[%clk 0:03:00]}  c5 {[%clk 0:03:03]} 7. O-O {[%clk 0:03:00]}  Nc6 {[%clk 0:03:04]} 8. Ne5 {[%clk 0:03:01]}  Qc7 {[%clk 0:02:47]} 9. Nxc6 {[%clk 0:03:01]}  bxc6 {[%clk 0:02:44]} 10. Be5 {[%clk 0:03:00]}  Qd8 {[%clk 0:02:39]} 11. Bf3 {[%clk 0:03:01]}  Bf5 {[%clk 0:02:35]} 12. d3 {[%clk 0:03:00]}  Nd7 {[%clk 0:02:28]} 13. Bxg7 {[%clk 0:02:59]}  Kxg7 {[%clk 0:02:29]} 14. Nd2 {[%clk 0:02:52]}  e5 {[%clk 0:02:26]} 15. e4 {[%clk 0:02:46]}  Be6 {[%clk 0:02:23]} 16. f5 {[%clk 0:02:33]}  gxf5 {[%clk 0:02:22]} 17. exf5 {[%clk 0:02:34]}  Bxf5 {[%clk 0:02:23]} 18. Bxd5 {[%clk 0:02:34]}  cxd5 {[%clk 0:02:18]} 19. Rxf5 {[%clk 0:02:34]}  Kh8 {[%clk 0:02:18]} 20. Qh5 {[%clk 0:02:31]}  Qe7 {[%clk 0:02:03]} 21. Raf1 {[%clk 0:02:30]}  f6 {[%clk 0:02:00]} 22. Qf3 {[%clk 0:02:26]}  Qe6 {[%clk 0:01:55]} 23. Rh5 {[%clk 0:02:25]}  Rg8 {[%clk 0:01:52]} 24. Qf5 {[%clk 0:02:23]}  Qxf5 {[%clk 0:01:51]} 25. Rfxf5 {[%clk 0:02:24]}  Rg4 {[%clk 0:01:45]} 26. Nf3 {[%clk 0:02:23]}  Rag8 {[%clk 0:01:42]} 27. g3 {[%clk 0:02:23]}  c4 {[%clk 0:01:35]} 28. d4 {[%clk 0:02:12]}  Re4 {[%clk 0:01:17]} 29. dxe5 {[%clk 0:02:09]}  Nxe5 {[%clk 0:01:05]} 30. Nxe5 {[%clk 0:02:08]}  fxe5 {[%clk 0:01:04]} 31. Rxe5 {[%clk 0:02:09]}  Rxe5 {[%clk 0:00:55]} 32. Rxe5 {[%clk 0:02:09]}  cxb3 {[%clk 0:00:53]} 33. cxb3 {[%clk 0:02:00]}  Rd8 {[%clk 0:00:49]} 34. Kf2 {[%clk 0:01:58]}  Rd7 {[%clk 0:00:47]} 35. Ke3 {[%clk 0:01:57]}  Kg7 {[%clk 0:00:32]} 36. Kd4 {[%clk 0:01:57]}  Kf6 {[%clk 0:00:32]} 37. Rxd5 {[%clk 0:01:57]}  Re7 {[%clk 0:00:33]} 38. Rd6+ {[%clk 0:01:56]}  Kf5 {[%clk 0:00:33]} 39. Rh6 {[%clk 0:01:56]}  Rc7 {[%clk 0:00:31]} 40. a4 {[%clk 0:01:54]}  Kg5 {[%clk 0:00:29]} 41. Ra6 {[%clk 0:01:53]}  Rb7 {[%clk 0:00:29]} 42. Kc4 {[%clk 0:01:53]}  Kg4 {[%clk 0:00:30]} 43. b4 {[%clk 0:01:52]}  Kh3 {[%clk 0:00:29]} 44. Rh6+ {[%clk 0:01:51]}  Kg2 {[%clk 0:00:29]} 45. b5 {[%clk 0:01:51]}  Kf3 {[%clk 0:00:24]} 46. a5 {[%clk 0:01:51]}  Ke4 {[%clk 0:00:24]} 47. a6 {[%clk 0:01:52]}  Rc7+ {[%clk 0:00:24]} 48. Kb4 {[%clk 0:01:52]}  Kd5 {[%clk 0:00:23]} 49. Ka5 {[%clk 0:01:50]}  Rc1 {[%clk 0:00:14]} 50. Rxh7 {[%clk 0:01:40]}  Ra1+ {[%clk 0:00:15]} 51. Kb4 {[%clk 0:01:39]}  Rb1+ {[%clk 0:00:16]} 52. Ka4 {[%clk 0:01:38]}  Ra1+ {[%clk 0:00:15]} 53. Kb3 {[%clk 0:01:38]}  Rb1+ {[%clk 0:00:15]} 54. Kc3 {[%clk 0:01:33]}  Rxb5 {[%clk 0:00:13]} 55. Rh5+ {[%clk 0:01:33]}  Kc6 {[%clk 0:00:13]} 56. Rxb5 {[%clk 0:01:34]}  Kxb5 {[%clk 0:00:14]} 57. h4 {[%clk 0:01:34]}  Kxa6 {[%clk 0:00:15]} 58. h5 {[%clk 0:01:35]}  Kb5 {[%clk 0:00:15]} 59. h6 {[%clk 0:01:36]}  a5 {[%clk 0:00:16]} 60. h7 {[%clk 0:01:37]}  a4 {[%clk 0:00:17]} 61. h8=Q {[%clk 0:01:36]}  a3 {[%clk 0:00:16]} 62. Kb3 {[%clk 0:01:36]}  a2 {[%clk 0:00:17]} 63. Kxa2 {[%clk 0:01:37]}  Kc4 {[%clk 0:00:18]} 64. Qf6 {[%clk 0:01:34]}  Kd3 {[%clk 0:00:18]} 65. Qf3+ {[%clk 0:01:34]}  Kc2 {[%clk 0:00:19]} 66. g4 {[%clk 0:01:35]}  Kd2 {[%clk 0:00:20]} 67. g5 {[%clk 0:01:36]}  Ke1 {[%clk 0:00:21]} 68. g6 {[%clk 0:01:37]}  Kd2 {[%clk 0:00:21]} 69. g7 {[%clk 0:01:37]}  Ke1 {[%clk 0:00:22]} 70. g8=Q {[%clk 0:01:38]}  Kd2 {[%clk 0:00:23]} 71. Qgf7 {[%clk 0:01:38]}  Ke1 {[%clk 0:00:24]} 72. Q7f6 {[%clk 0:01:38]}  Kd2 {[%clk 0:00:24]} 73. Q6f5 {[%clk 0:01:38]}  Ke1 {[%clk 0:00:25]} 74. Q5g4 {[%clk 0:01:36]}  Kd2 {[%clk 0:00:26]} 75. Qgg2+ {[%clk 0:01:36]}  Ke1 {[%clk 0:00:27]} 76. Qff2+ {[%clk 0:01:37]}  Kd1 {[%clk 0:00:27]} 77. Kb3 {[%clk 0:01:37]}  Kc1 {[%clk 0:00:28]} 78. Kc3 {[%clk 0:01:37]} 1-0


[Site "https://www.chess.com"]

[Event "Titled Tuesday Blitz December 27 Late 2022"]
[White "Kravtsiv, Martyn"]
[Black "Solon, Nathan"]
[WhiteFideId "14113147"]
[BlackFideId "2017229"]
[WhiteElo "2598"]
[BlackElo "2306"]
[Result "1-0"]
[Round "03"]
[TimeControl "180+2"]
[Date "2022.12.27"]
[WhiteClock "0:00:39"]
[BlackClock "0:00:03"]

1. e4 {[%clk 0:03:00]}  c5 {[%clk 0:02:56]} 2. Nf3 {[%clk 0:03:00]}  e6 {[%clk 0:02:56]} 3. d4 {[%clk 0:03:00]}  cxd4 {[%clk 0:02:57]} 4. Nxd4 {[%clk 0:03:00]}  Nf6 {[%clk 0:02:58]} 5. Nc3 {[%clk 0:03:00]}  Nc6 {[%clk 0:02:57]} 6. Ndb5 {[%clk 0:02:59]}  Bc5 {[%clk 0:02:56]} 7. Bf4 {[%clk 0:02:59]}  O-O {[%clk 0:02:56]} 8. Bc7 {[%clk 0:02:58]}  Qe7 {[%clk 0:02:56]} 9. Bd6 {[%clk 0:02:59]}  Bxd6 {[%clk 0:02:55]} 10. Qxd6 {[%clk 0:03:00]}  Qd8 {[%clk 0:02:56]} 11. Nc7 {[%clk 0:02:58]}  Ne8 {[%clk 0:02:40]} 12. Nxe8 {[%clk 0:02:57]}  Rxe8 {[%clk 0:02:41]} 13. O-O-O {[%clk 0:02:55]}  a6 {[%clk 0:02:36]} 14. h4 {[%clk 0:02:46]}  b5 {[%clk 0:02:35]} 15. Rh3 {[%clk 0:02:46]}  Qb6 {[%clk 0:02:22]} 16. Rd2 {[%clk 0:02:33]}  b4 {[%clk 0:02:13]} 17. Na4 {[%clk 0:02:30]}  Qa5 {[%clk 0:02:09]} 18. b3 {[%clk 0:02:28]}  Qe5 {[%clk 0:02:04]} 19. Qxe5 {[%clk 0:02:22]}  Nxe5 {[%clk 0:02:05]} 20. f4 {[%clk 0:02:22]}  Ng4 {[%clk 0:01:57]} 21. e5 {[%clk 0:02:18]}  Bb7 {[%clk 0:01:48]} 22. Nb6 {[%clk 0:02:14]}  Rad8 {[%clk 0:01:45]} 23. Nxd7 {[%clk 0:02:07]}  Bc6 {[%clk 0:01:28]} 24. Nc5 {[%clk 0:02:02]}  Rxd2 {[%clk 0:01:27]} 25. Kxd2 {[%clk 0:02:02]}  Nf2 {[%clk 0:01:26]} 26. Re3 {[%clk 0:01:56]}  Rd8+ {[%clk 0:01:26]} 27. Ke1 {[%clk 0:01:49]}  Ng4 {[%clk 0:01:13]} 28. Rd3 {[%clk 0:01:48]}  Rc8 {[%clk 0:01:13]} 29. Rg3 {[%clk 0:01:38]}  h5 {[%clk 0:01:10]} 30. Nxa6 {[%clk 0:01:38]}  Be4 {[%clk 0:00:54]} 31. Nxb4 {[%clk 0:01:37]}  Bxc2 {[%clk 0:00:55]} 32. Be2 {[%clk 0:01:36]}  Bf5 {[%clk 0:00:47]} 33. Bc4 {[%clk 0:01:24]}  Rd8 {[%clk 0:00:39]} 34. a4 {[%clk 0:01:20]}  Rd4 {[%clk 0:00:39]} 35. Nd3 {[%clk 0:00:58]}  Bxd3 {[%clk 0:00:32]} 36. Rxd3 {[%clk 0:00:57]}  Rxf4 {[%clk 0:00:33]} 37. a5 {[%clk 0:00:57]}  Nxe5 {[%clk 0:00:32]} 38. Rd8+ {[%clk 0:00:56]}  Kh7 {[%clk 0:00:32]} 39. a6 {[%clk 0:00:56]}  Nc6 {[%clk 0:00:16]} 40. Rc8 {[%clk 0:00:55]}  Ne7 {[%clk 0:00:06]} 41. Rb8 {[%clk 0:00:39]}  Nc6 {[%clk 0:00:02]} 42. Rb6 {[%clk 0:00:39]}  Na7 {[%clk 0:00:02]} 43. Rb7 {[%clk 0:00:39]}  Nc6 {[%clk 0:00:03]} 44. Rc7 {[%clk 0:00:39]} 1-0


[Site "https://www.chess.com"]

[Event "Titled Tuesday Blitz December 27 Late 2022"]
[White "Ladan, Nicholas"]
[Black "Hernandez Bonilla, Amelia"]
[WhiteFideId "30918855"]
[BlackFideId "3900193"]
[WhiteElo "2228"]
[BlackElo "1960"]
[Result "1-0"]
[Round "03"]
[TimeControl "180+2"]
[Date "2022.12.27"]
[WhiteClock "0:01:30"]
[BlackClock "0:00:53"]

1. e3 {[%clk 0:03:00]}  d5 {[%clk 0:02:52]} 2. Nc3 {[%clk 0:03:01]}  Nf6 {[%clk 0:02:51]} 3. f4 {[%clk 0:02:59]}  e6 {[%clk 0:02:50]} 4. g3 {[%clk 0:02:59]}  Bd6 {[%clk 0:02:44]} 5. Bg2 {[%clk 0:03:00]}  O-O {[%clk 0:02:44]} 6. b3 {[%clk 0:03:00]}  b6 {[%clk 0:02:41]} 7. Bb2 {[%clk 0:03:00]}  Bb7 {[%clk 0:02:41]} 8. Nge2 {[%clk 0:03:00]}  Nbd7 {[%clk 0:02:41]} 9. O-O {[%clk 0:03:01]}  c5 {[%clk 0:02:33]} 10. d3 {[%clk 0:02:55]}  Qe7 {[%clk 0:02:26]} 11. h3 {[%clk 0:02:39]}  e5 {[%clk 0:02:21]} 12. Nb5 {[%clk 0:02:32]}  Bb8 {[%clk 0:02:20]} 13. Qd2 {[%clk 0:02:23]}  Re8 {[%clk 0:02:17]} 14. Rae1 {[%clk 0:02:20]}  a6 {[%clk 0:02:07]} 15. Na3 {[%clk 0:02:20]}  b5 {[%clk 0:02:05]} 16. c4 {[%clk 0:02:17]}  b4 {[%clk 0:01:41]} 17. Nc2 {[%clk 0:02:16]}  Nb6 {[%clk 0:01:21]} 18. fxe5 {[%clk 0:02:08]}  Bxe5 {[%clk 0:01:22]} 19. Bxe5 {[%clk 0:02:05]}  Qxe5 {[%clk 0:01:23]} 20. Nf4 {[%clk 0:01:56]}  Rad8 {[%clk 0:01:15]} 21. d4 {[%clk 0:01:43]}  Qc7 {[%clk 0:00:59]} 22. dxc5 {[%clk 0:01:39]}  dxc4 {[%clk 0:00:56]} 23. cxb6 {[%clk 0:01:33]}  Rxd2 {[%clk 0:00:54]} 24. bxc7 {[%clk 0:01:31]}  Rxg2+ {[%clk 0:00:53]} 25. Nxg2 {[%clk 0:01:30]} 1-0


[Site "https://www.chess.com"]